[Event "Titled Tuesday Blitz June 13 Early 2023"]
[White "Petukhov, Dmitry"]
[Black "Simonovic, Miroslav"]
[WhiteFideId "4142748"]
[BlackFideId "919152"]
[WhiteElo "2311"]
[BlackElo "2075"]
[Result "1/2-1/2"]
[Round "3"]
[TimeControl "180+2"]
[Date "2023.06.13"]
[WhiteClock "0:00:32"]
[BlackClock "0:00:04"]
[Board "172"]

1. e4 {[%clk 0:02:59]}  c5 {[%clk 0:03:00]} 2. c3 {[%clk 0:02:59]}  d5 {[%clk 0:02:59]} 3. exd5 {[%clk 0:02:59]}  Qxd5 {[%clk 0:03:00]} 4. d4 {[%clk 0:02:59]}  Nc6 {[%clk 0:03:01]} 5. Nf3 {[%clk 0:02:58]}  Bf5 {[%clk 0:03:02]} 6. Be3 {[%clk 0:02:56]}  cxd4 {[%clk 0:03:00]} 7. cxd4 {[%clk 0:02:57]}  Bxb1 {[%clk 0:03:01]} 8. Rxb1 {[%clk 0:02:57]}  e6 {[%clk 0:03:01]} 9. a3 {[%clk 0:02:49]}  a6 {[%clk 0:02:56]} 10. b4 {[%clk 0:02:47]}  Bd6 {[%clk 0:02:50]} 11. Rc1 {[%clk 0:02:47]}  Nge7 {[%clk 0:02:49]} 12. Bc4 {[%clk 0:02:42]}  Qh5 {[%clk 0:02:48]} 13. O-O {[%clk 0:02:41]}  O-O {[%clk 0:02:47]} 14. h3 {[%clk 0:02:41]}  Rfd8 {[%clk 0:02:32]} 15. Nd2 {[%clk 0:02:35]}  Qxd1 {[%clk 0:02:30]} 16. Rfxd1 {[%clk 0:02:36]}  Rd7 {[%clk 0:02:04]} 17. Ne4 {[%clk 0:02:36]}  Rad8 {[%clk 0:02:00]} 18. b5 {[%clk 0:02:34]}  axb5 {[%clk 0:01:56]} 19. Bxb5 {[%clk 0:02:35]}  Bxa3 {[%clk 0:01:53]} 20. Rb1 {[%clk 0:02:22]}  Nd5 {[%clk 0:01:30]} 21. Bg5 {[%clk 0:02:18]}  f6 {[%clk 0:01:27]} 22. Bc1 {[%clk 0:02:15]}  Bxc1 {[%clk 0:01:25]} 23. Rdxc1 {[%clk 0:02:16]}  Rc7 {[%clk 0:01:15]} 24. Nc5 {[%clk 0:02:10]}  Kf7 {[%clk 0:01:14]} 25. Nxb7 {[%clk 0:02:08]}  Rxb7 {[%clk 0:01:12]} 26. Bxc6 {[%clk 0:02:07]}  Rxb1 {[%clk 0:01:08]} 27. Rxb1 {[%clk 0:02:08]}  Ne7 {[%clk 0:01:08]} 28. Be4 {[%clk 0:01:46]}  Rxd4 {[%clk 0:01:07]} 29. Bxh7 {[%clk 0:01:47]}  f5 {[%clk 0:01:00]} 30. Rb7 {[%clk 0:01:40]}  Kf6 {[%clk 0:00:53]} 31. Rb8 {[%clk 0:01:40]}  g6 {[%clk 0:00:42]} 32. Bg8 {[%clk 0:01:36]}  Nxg8 {[%clk 0:00:21]} 33. Rxg8 {[%clk 0:01:34]}  Rd1+ {[%clk 0:00:21]} 34. Kh2 {[%clk 0:01:33]}  e5 {[%clk 0:00:19]} 35. Rf8+ {[%clk 0:01:32]}  Kg5 {[%clk 0:00:19]} 36. f3 {[%clk 0:01:29]}  Rd2 {[%clk 0:00:17]} 37. Rg8 {[%clk 0:01:27]}  Rd6 {[%clk 0:00:16]} 38. Kg3 {[%clk 0:01:25]}  Re6 {[%clk 0:00:14]} 39. h4+ {[%clk 0:01:22]}  Kh6 {[%clk 0:00:13]} 40. Rf8 {[%clk 0:01:23]}  Kg7 {[%clk 0:00:13]} 41. Ra8 {[%clk 0:01:23]}  Kf6 {[%clk 0:00:12]} 42. Ra7 {[%clk 0:01:17]}  Rd6 {[%clk 0:00:10]} 43. Kh3 {[%clk 0:01:14]}  f4 {[%clk 0:00:10]} 44. Kg4 {[%clk 0:01:14]}  Rc6 {[%clk 0:00:09]} 45. Ra2 {[%clk 0:01:09]}  Rd6 {[%clk 0:00:09]} 46. Rc2 {[%clk 0:01:08]}  Rb6 {[%clk 0:00:08]} 47. Rd2 {[%clk 0:01:08]}  Ra6 {[%clk 0:00:08]} 48. Rd8 {[%clk 0:01:06]}  Rb6 {[%clk 0:00:08]} 49. Rf8+ {[%clk 0:01:06]}  Kg7 {[%clk 0:00:08]} 50. Rc8 {[%clk 0:01:04]}  Kf6 {[%clk 0:00:08]} 51. Rh8 {[%clk 0:01:00]}  Kg7 {[%clk 0:00:07]} 52. Rc8 {[%clk 0:00:58]}  Kf6 {[%clk 0:00:08]} 53. Rc5 {[%clk 0:00:56]}  Ra6 {[%clk 0:00:07]} 54. Rd5 {[%clk 0:00:56]}  Rb6 {[%clk 0:00:08]} 55. h5 {[%clk 0:00:55]}  gxh5+ {[%clk 0:00:07]} 56. Kxh5 {[%clk 0:00:55]}  Kf5 {[%clk 0:00:07]} 57. Rd8 {[%clk 0:00:52]}  Rf6 {[%clk 0:00:07]} 58. Rg8 {[%clk 0:00:51]}  Rf7 {[%clk 0:00:06]} 59. Rg5+ {[%clk 0:00:50]}  Kf6 {[%clk 0:00:07]} 60. Rg6+ {[%clk 0:00:50]}  Kf5 {[%clk 0:00:07]} 61. Rg5+ {[%clk 0:00:51]}  Kf6 {[%clk 0:00:07]} 62. Kg4 {[%clk 0:00:51]}  Rh7 {[%clk 0:00:06]} 63. Rf5+ {[%clk 0:00:47]}  Ke6 {[%clk 0:00:06]} 64. Rg5 {[%clk 0:00:43]}  Rh2 {[%clk 0:00:06]} 65. Rg6+ {[%clk 0:00:39]}  Kf7 {[%clk 0:00:05]} 66. Kf5 {[%clk 0:00:40]}  Rh5+ {[%clk 0:00:04]} 67. Rg5 {[%clk 0:00:41]}  Rxg5+ {[%clk 0:00:04]} 68. Kxg5 {[%clk 0:00:41]}  Ke6 {[%clk 0:00:04]} 69. Kg6 {[%clk 0:00:41]}  Ke7 {[%clk 0:00:04]} 70. Kf5 {[%clk 0:00:39]}  Kd6 {[%clk 0:00:04]} 71. Kf6 {[%clk 0:00:39]}  Kd5 {[%clk 0:00:04]} 72. Kf5 {[%clk 0:00:39]}  Kd6 {[%clk 0:00:04]} 73. Kf6 {[%clk 0:00:35]}  Kd5 {[%clk 0:00:05]} 74. Kg5 {[%clk 0:00:34]}  Ke6 {[%clk 0:00:04]} 75. Kg6 {[%clk 0:00:34]}  Ke7 {[%clk 0:00:04]} 76. Kf5 {[%clk 0:00:32]}  Kd6 {[%clk 0:00:04]} 1/2-1/2


[Site "https://www.chess.com"]

[Event "Titled Tuesday Blitz June 13 Early 2023"]
[White "Vianello, Enrico"]
[Black "krucki03"]
[WhiteFideId "810738"]
[WhiteElo "2179"]
[BlackElo "2451"]
[Result "0-1"]
[Round "3"]
[TimeControl "180+2"]
[Date "2023.06.13"]
[WhiteClock "0:00:19"]
[BlackClock "0:00:27"]
[Board "178"]

1. g3 {[%clk 0:02:56]}  d5 {[%clk 0:02:59]} 2. Bg2 {[%clk 0:02:53]}  e6 {[%clk 0:02:57]} 3. d4 {[%clk 0:02:48]}  Nf6 {[%clk 0:02:57]} 4. c4 {[%clk 0:02:44]}  Be7 {[%clk 0:02:57]} 5. Nf3 {[%clk 0:02:40]}  O-O {[%clk 0:02:57]} 6. O-O {[%clk 0:02:40]}  b6 {[%clk 0:02:52]} 7. cxd5 {[%clk 0:02:39]}  exd5 {[%clk 0:02:52]} 8. Nc3 {[%clk 0:02:37]}  Bb7 {[%clk 0:02:48]} 9. Bf4 {[%clk 0:02:35]}  a6 {[%clk 0:02:47]} 10. Rc1 {[%clk 0:02:35]}  Bd6 {[%clk 0:02:47]} 11. Bxd6 {[%clk 0:02:31]}  Qxd6 {[%clk 0:02:48]} 12. Qd3 {[%clk 0:02:30]}  Nbd7 {[%clk 0:02:48]} 13. a3 {[%clk 0:02:28]}  Rfe8 {[%clk 0:02:47]} 14. e3 {[%clk 0:02:28]}  Rac8 {[%clk 0:02:45]} 15. b4 {[%clk 0:02:27]}  c5 {[%clk 0:02:42]} 16. dxc5 {[%clk 0:02:27]}  bxc5 {[%clk 0:02:42]} 17. bxc5 {[%clk 0:02:04]}  Nxc5 {[%clk 0:02:43]} 18. Qb1 {[%clk 0:02:04]}  Rb8 {[%clk 0:02:40]} 19. Qa2 {[%clk 0:02:03]}  h6 {[%clk 0:02:33]} 20. Rfd1 {[%clk 0:01:59]}  Red8 {[%clk 0:02:28]} 21. Nd4 {[%clk 0:01:58]}  Ne6 {[%clk 0:02:23]} 22. Nce2 {[%clk 0:01:54]}  Qe5 {[%clk 0:02:16]} 23. Nxe6 {[%clk 0:01:51]}  fxe6 {[%clk 0:02:14]} 24. Nd4 {[%clk 0:01:45]}  Rf8 {[%clk 0:02:12]} 25. Nc6 {[%clk 0:01:42]}  Bxc6 {[%clk 0:02:11]} 26. Rxc6 {[%clk 0:01:43]}  Rb2 {[%clk 0:02:11]} 27. Qa1 {[%clk 0:01:40]}  Ng4 {[%clk 0:02:11]} 28. Rf1 {[%clk 0:01:20]}  Nxf2 {[%clk 0:00:47]} 29. Rc2 {[%clk 0:00:52]}  Nh3+ {[%clk 0:00:34]} 30. Kh1 {[%clk 0:00:40]}  Rxf1+ {[%clk 0:00:32]} 31. Bxf1 {[%clk 0:00:38]}  Qe4+ {[%clk 0:00:31]} 32. Rg2 {[%clk 0:00:19]}  Rb1 {[%clk 0:00:27]} 0-1


[Site "https://www.chess.com"]

[Event "Titled Tuesday Blitz June 13 Early 2023"]
[White "Jimenez Garcia, Emmanuel"]
[Black "Nikulina, Alena"]
[WhiteFideId "6504779"]
[BlackFideId "4172051"]
[WhiteElo "2440"]
[BlackElo "1608"]
[Result "1-0"]
[Round "3"]
[TimeControl "180+2"]
[Date "2023.06.13"]
[WhiteClock "0:01:26"]
[BlackClock "0:00:03"]
[Board "179"]

1. Nf3 {[%clk 0:03:00]}  d5 {[%clk 0:02:55]} 2. c4 {[%clk 0:03:00]}  Nf6 {[%clk 0:02:53]} 3. cxd5 {[%clk 0:02:59]}  Nxd5 {[%clk 0:02:52]} 4. b3 {[%clk 0:02:59]}  c5 {[%clk 0:02:47]} 5. Bb2 {[%clk 0:02:59]}  Nc6 {[%clk 0:02:47]} 6. g3 {[%clk 0:02:59]}  Qc7 {[%clk 0:02:39]} 7. Bg2 {[%clk 0:02:58]}  Bg4 {[%clk 0:02:26]} 8. O-O {[%clk 0:02:54]}  O-O-O {[%clk 0:02:18]} 9. Na3 {[%clk 0:02:52]}  a6 {[%clk 0:02:16]} 10. Nc4 {[%clk 0:02:51]}  f6 {[%clk 0:02:08]} 11. a4 {[%clk 0:02:50]}  e5 {[%clk 0:02:05]} 12. a5 {[%clk 0:02:50]}  h5 {[%clk 0:02:01]} 13. Nh4 {[%clk 0:02:46]}  g5 {[%clk 0:01:52]} 14. Ng6 {[%clk 0:02:45]}  Rh6 {[%clk 0:01:40]} 15. Nxf8 {[%clk 0:02:44]}  Qf7 {[%clk 0:01:17]} 16. Bxd5 {[%clk 0:02:42]}  Qxf8 {[%clk 0:01:05]} 17. Bxc6 {[%clk 0:02:18]}  bxc6 {[%clk 0:01:00]} 18. Rc1 {[%clk 0:02:16]}  h4 {[%clk 0:00:57]} 19. f3 {[%clk 0:02:08]}  Bh3 {[%clk 0:00:41]} 20. g4 {[%clk 0:02:04]}  Bxf1 {[%clk 0:00:36]} 21. Qxf1 {[%clk 0:02:04]}  Rh7 {[%clk 0:00:32]} 22. d3 {[%clk 0:02:03]}  Rb7 {[%clk 0:00:31]} 23. Nb6+ {[%clk 0:02:00]}  Kb8 {[%clk 0:00:29]} 24. Qf2 {[%clk 0:02:00]}  Qd6 {[%clk 0:00:25]} 25. Qxc5 {[%clk 0:01:58]}  Qxc5+ {[%clk 0:00:19]} 26. Rxc5 {[%clk 0:01:57]}  Kc7 {[%clk 0:00:20]} 27. Kf2 {[%clk 0:01:56]}  Re8 {[%clk 0:00:17]} 28. Ke3 {[%clk 0:01:56]}  Re6 {[%clk 0:00:17]} 29. b4 {[%clk 0:01:54]}  Rd6 {[%clk 0:00:15]} 30. Ke4 {[%clk 0:01:51]}  Rd8 {[%clk 0:00:12]} 31. Kf5 {[%clk 0:01:48]}  Rd6 {[%clk 0:00:12]} 32. Ke4 {[%clk 0:01:48]}  Rb8 {[%clk 0:00:12]} 33. Bc3 {[%clk 0:01:44]}  Rbd8 {[%clk 0:00:11]} 34. Nc4 {[%clk 0:01:43]}  Rd4+ {[%clk 0:00:09]} 35. Bxd4 {[%clk 0:01:42]}  Rxd4+ {[%clk 0:00:10]} 36. Kf5 {[%clk 0:01:42]}  Rf4+ {[%clk 0:00:10]} 37. Ke6 {[%clk 0:01:42]}  h3 {[%clk 0:00:08]} 38. Nb6 {[%clk 0:01:38]}  Rd4 {[%clk 0:00:07]} 39. Nd5+ {[%clk 0:01:34]}  Kb7 {[%clk 0:00:06]} 40. Nxf6 {[%clk 0:01:33]}  Rxb4 {[%clk 0:00:06]} 41. Ne4 {[%clk 0:01:33]}  Rb2 {[%clk 0:00:07]} 42. Rxe5 {[%clk 0:01:32]}  Rxe2 {[%clk 0:00:07]} 43. Rxg5 {[%clk 0:01:32]}  Rxh2 {[%clk 0:00:06]} 44. Rg7+ {[%clk 0:01:32]}  Kc8 {[%clk 0:00:05]} 45. Kd6 {[%clk 0:01:29]}  Rc2 {[%clk 0:00:03]} 46. Rh7 {[%clk 0:01:28]}  h2 {[%clk 0:00:03]} 47. g5 {[%clk 0:01:27]}  Kb8 {[%clk 0:00:04]} 48. g6 {[%clk 0:01:27]}  h1=Q {[%clk 0:00:03]} 49. Rxh1 {[%clk 0:01:26]}  c5 {[%clk 0:00:03]} 50. Nxc5 {[%clk 0:01:26]} 1-0


[Site "https://www.chess.com"]

[Event "Titled Tuesday Blitz June 13 Early 2023"]
[White "The_Sherman_Variation"]
[Black "Novikova, Margarita"]
[BlackFideId "14109689"]
[WhiteElo "2444"]
[BlackElo "2013"]
[Result "1-0"]
[Round "3"]
[TimeControl "180+2"]
[Date "2023.06.13"]
[WhiteClock "0:01:21"]
[BlackClock "0:00:46"]
[Board "180"]

1. Nc3 {[%clk 0:03:00]}  Nf6 {[%clk 0:02:58]} 2. e4 {[%clk 0:03:00]}  e5 {[%clk 0:02:55]} 3. g3 {[%clk 0:02:59]}  d5 {[%clk 0:02:52]} 4. exd5 {[%clk 0:02:59]}  Nxd5 {[%clk 0:02:53]} 5. Bg2 {[%clk 0:03:00]}  Nxc3 {[%clk 0:02:53]} 6. bxc3 {[%clk 0:03:01]}  Bc5 {[%clk 0:02:51]} 7. Nf3 {[%clk 0:03:00]}  Nc6 {[%clk 0:02:49]} 8. O-O {[%clk 0:02:59]}  O-O {[%clk 0:02:49]} 9. Re1 {[%clk 0:02:59]}  Re8 {[%clk 0:02:45]} 10. Rb1 {[%clk 0:02:59]}  Rb8 {[%clk 0:02:44]} 11. h3 {[%clk 0:02:53]}  f6 {[%clk 0:02:38]} 12. d4 {[%clk 0:02:49]}  exd4 {[%clk 0:02:35]} 13. Rxe8+ {[%clk 0:02:50]}  Qxe8 {[%clk 0:02:36]} 14. cxd4 {[%clk 0:02:51]}  Bb6 {[%clk 0:02:26]} 15. Bf4 {[%clk 0:02:49]}  Bf5 {[%clk 0:02:06]} 16. Rb5 {[%clk 0:02:47]}  Be4 {[%clk 0:01:57]} 17. c3 {[%clk 0:02:11]}  a6 {[%clk 0:01:55]} 18. Rb2 {[%clk 0:02:07]}  Na5 {[%clk 0:01:52]} 19. Qe2 {[%clk 0:01:58]}  Qc6 {[%clk 0:01:50]} 20. Rxb6 {[%clk 0:01:49]}  Bxf3 {[%clk 0:01:41]} 21. Rxc6 {[%clk 0:01:43]}  Bxe2 {[%clk 0:01:41]} 22. Rxc7 {[%clk 0:01:41]}  g5 {[%clk 0:01:27]} 23. Bd6 {[%clk 0:01:31]}  Re8 {[%clk 0:01:15]} 24. Bd5+ {[%clk 0:01:28]}  Kh8 {[%clk 0:01:14]} 25. Be7 {[%clk 0:01:23]}  Rxe7 {[%clk 0:00:53]} 26. Rxe7 {[%clk 0:01:24]}  b5 {[%clk 0:00:46]} 27. Rxe2 {[%clk 0:01:21]} 1-0


[Site "https://www.chess.com"]

[Event "Titled Tuesday Blitz June 13 Early 2023"]
[White "Shapiro, Daniel"]
[Black "Perez, Maximiliano"]
[WhiteFideId "2001780"]
[BlackFideId "117234"]
[WhiteElo "2339"]
[BlackElo "2334"]
[Result "0-1"]
[Round "3"]
[TimeControl "180+2"]
[Date "2023.06.13"]
[WhiteClock "0:00:00"]
[BlackClock "0:01:45"]
[Board "187"]

1. d4 {[%clk 0:03:00]}  Nf6 {[%clk 0:02:59]} 2. c4 {[%clk 0:03:00]}  e6 {[%clk 0:03:00]} 3. g3 {[%clk 0:03:00]}  d5 {[%clk 0:02:59]} 4. Nf3 {[%clk 0:03:00]}  Bb4+ {[%clk 0:03:00]} 5. Bd2 {[%clk 0:02:59]}  Be7 {[%clk 0:03:00]} 6. Qc2 {[%clk 0:02:58]}  O-O {[%clk 0:03:00]} 7. Bg2 {[%clk 0:02:58]}  Ne4 {[%clk 0:03:01]} 8. Bf4 {[%clk 0:02:56]}  c6 {[%clk 0:03:00]} 9. O-O {[%clk 0:02:54]}  Nd7 {[%clk 0:02:57]} 10. Rd1 {[%clk 0:02:54]}  g5 {[%clk 0:02:57]} 11. Bc1 {[%clk 0:02:47]}  f5 {[%clk 0:02:57]} 12. Ne5 {[%clk 0:02:37]}  Nxe5 {[%clk 0:02:53]} 13. dxe5 {[%clk 0:02:37]}  Bc5 {[%clk 0:02:48]} 14. e3 {[%clk 0:02:29]}  Qb6 {[%clk 0:02:41]} 15. a3 {[%clk 0:02:08]}  a5 {[%clk 0:02:40]} 16. Nc3 {[%clk 0:01:36]}  Nxc3 {[%clk 0:02:39]} 17. Qxc3 {[%clk 0:01:36]}  Bd7 {[%clk 0:02:35]} 18. b3 {[%clk 0:01:31]}  Be8 {[%clk 0:02:34]} 19. Rb1 {[%clk 0:01:30]}  Bh5 {[%clk 0:02:32]} 20. Rd2 {[%clk 0:01:20]}  Rad8 {[%clk 0:02:31]} 21. b4 {[%clk 0:01:16]}  axb4 {[%clk 0:02:32]} 22. axb4 {[%clk 0:01:16]}  d4 {[%clk 0:02:33]} 23. exd4 {[%clk 0:00:41]}  Bxd4 {[%clk 0:02:34]} 24. Qb3 {[%clk 0:00:41]}  Bxf2+ {[%clk 0:01:48]} 25. Rxf2 {[%clk 0:00:38]}  Rd1+ {[%clk 0:01:48]} 26. Bf1 {[%clk 0:00:32]}  Qd4 {[%clk 0:01:47]} 27. Bb2 {[%clk 0:00:21]}  Rxb1 {[%clk 0:01:46]} 28. Bxd4 {[%clk 0:00:15]}  Rxb3 {[%clk 0:01:47]} 29. Kg2 {[%clk 0:00:12]}  Rd8 {[%clk 0:01:46]} 30. Bc5 {[%clk 0:00:12]}  Rd1 {[%clk 0:01:44]} 31. Be2 {[%clk 0:00:08]}  Bxe2 {[%clk 0:01:42]} 32. Rxe2 {[%clk 0:00:09]}  Rbd3 {[%clk 0:01:42]} 33. Bd6 {[%clk 0:00:08]}  R1d2 {[%clk 0:01:42]} 34. Kf2 {[%clk 0:00:07]}  Rxe2+ {[%clk 0:01:42]} 35. Kxe2 {[%clk 0:00:08]}  Rc3 {[%clk 0:01:43]} 36. c5 {[%clk 0:00:06]}  Rb3 {[%clk 0:01:43]} 37. Kf2 {[%clk 0:00:05]}  Rxb4 {[%clk 0:01:43]} 38. h3 {[%clk 0:00:04]}  Kf7 {[%clk 0:01:44]} 39. Kf3 {[%clk 0:00:04]}  Kg6 {[%clk 0:01:45]} 40. g4 {[%clk 0:00:04]}  Rb3+ {[%clk 0:01:46]} 41. Kg2 {[%clk 0:00:00]}  h5 {[%clk 0:01:45]} 0-1


[Site "https://www.chess.com"]

[Event "Titled Tuesday Blitz June 13 Early 2023"]
[White "Peycheva, Gergana"]
[Black "Georg, Heinz"]
[WhiteFideId "2916711"]
[BlackFideId "4607295"]
[WhiteElo "2216"]
[BlackElo "2334"]
[Result "1-0"]
[Round "3"]
[TimeControl "180+2"]
[Date "2023.06.13"]
[WhiteClock "0:00:05"]
[BlackClock "0:00:07"]
[Board "190"]

1. d4 {[%clk 0:03:00]}  f5 {[%clk 0:02:59]} 2. g3 {[%clk 0:02:58]}  Nf6 {[%clk 0:02:59]} 3. Bg2 {[%clk 0:02:59]}  g6 {[%clk 0:02:59]} 4. Nh3 {[%clk 0:02:59]}  Bg7 {[%clk 0:02:59]} 5. Nf4 {[%clk 0:03:00]}  O-O {[%clk 0:02:58]} 6. h4 {[%clk 0:03:00]}  d6 {[%clk 0:02:55]} 7. d5 {[%clk 0:02:53]}  e5 {[%clk 0:02:51]} 8. dxe6 {[%clk 0:02:50]}  c6 {[%clk 0:02:52]} 9. h5 {[%clk 0:02:36]}  gxh5 {[%clk 0:02:36]} 10. c4 {[%clk 0:02:23]}  Na6 {[%clk 0:02:25]} 11. Nc3 {[%clk 0:02:23]}  Qe7 {[%clk 0:02:24]} 12. Nxh5 {[%clk 0:02:09]}  Nxh5 {[%clk 0:02:18]} 13. Rxh5 {[%clk 0:02:09]}  Bxe6 {[%clk 0:02:18]} 14. Bg5 {[%clk 0:01:18]}  Qf7 {[%clk 0:02:17]} 15. Rh4 {[%clk 0:01:18]}  Bxc4 {[%clk 0:02:11]} 16. Qxd6 {[%clk 0:01:15]}  Rae8 {[%clk 0:01:56]} 17. Bf3 {[%clk 0:00:55]}  Re6 {[%clk 0:01:52]} 18. Qd2 {[%clk 0:00:37]}  b5 {[%clk 0:00:57]} 19. Kf1 {[%clk 0:00:32]}  Nc7 {[%clk 0:00:37]} 20. Rc1 {[%clk 0:00:26]}  Rfe8 {[%clk 0:00:17]} 21. Kg2 {[%clk 0:00:12]}  Nd5 {[%clk 0:00:14]} 22. Nxd5 {[%clk 0:00:11]}  Bxd5 {[%clk 0:00:13]} 23. Bxd5 {[%clk 0:00:09]}  cxd5 {[%clk 0:00:13]} 24. Qxd5 {[%clk 0:00:08]}  Rxe2 {[%clk 0:00:10]} 25. Qxf7+ {[%clk 0:00:06]}  Kxf7 {[%clk 0:00:10]} 26. Rc7+ {[%clk 0:00:06]}  Kg6 {[%clk 0:00:10]} 27. Bf4 {[%clk 0:00:06]}  Bf6 {[%clk 0:00:07]} 28. Rh6# {[%clk 0:00:05]} 1-0


[Site "https://www.chess.com"]

[Event "Titled Tuesday Blitz June 13 Early 2023"]
[White "Gonzalez Vega, Alejandro"]
[Black "Turzo, Attila"]
[WhiteFideId "3510042"]
[BlackFideId "704954"]
[WhiteElo "2295"]
[BlackElo "2480"]
[Result "0-1"]
[Round "3"]
[TimeControl "180+2"]
[Date "2023.06.13"]
[WhiteClock "0:00:00"]
[BlackClock "0:00:16"]
[Board "198"]

1. e4 {[%clk 0:03:00]}  d6 {[%clk 0:02:59]} 2. d4 {[%clk 0:02:56]}  Nf6 {[%clk 0:02:59]} 3. Nc3 {[%clk 0:02:56]}  g6 {[%clk 0:03:00]} 4. Bg5 {[%clk 0:02:55]}  Bg7 {[%clk 0:03:00]} 5. Qd2 {[%clk 0:02:54]}  c6 {[%clk 0:02:59]} 6. f3 {[%clk 0:02:53]}  b5 {[%clk 0:02:57]} 7. O-O-O {[%clk 0:02:52]}  Nbd7 {[%clk 0:02:55]} 8. Kb1 {[%clk 0:02:52]}  Nb6 {[%clk 0:02:49]} 9. d5 {[%clk 0:02:12]}  b4 {[%clk 0:02:43]} 10. Nce2 {[%clk 0:02:10]}  cxd5 {[%clk 0:02:41]} 11. exd5 {[%clk 0:01:53]}  Nfxd5 {[%clk 0:02:25]} 12. Nd4 {[%clk 0:01:52]}  Bd7 {[%clk 0:02:14]} 13. Nh3 {[%clk 0:01:42]}  h6 {[%clk 0:02:02]} 14. Bh4 {[%clk 0:01:37]}  O-O {[%clk 0:02:02]} 15. Bf2 {[%clk 0:01:25]}  Na4 {[%clk 0:01:57]} 16. Nb3 {[%clk 0:00:50]}  Bxb2 {[%clk 0:01:42]} 17. Bd4 {[%clk 0:00:45]}  Bxd4 {[%clk 0:01:20]} 18. Qxd4 {[%clk 0:00:44]}  Ndc3+ {[%clk 0:01:20]} 19. Ka1 {[%clk 0:00:36]}  Nxd1 {[%clk 0:01:21]} 20. Qxd1 {[%clk 0:00:35]}  Qb6 {[%clk 0:01:13]} 21. Qd4 {[%clk 0:00:31]}  Qxd4+ {[%clk 0:01:11]} 22. Nxd4 {[%clk 0:00:31]}  e5 {[%clk 0:01:03]} 23. Nb3 {[%clk 0:00:29]}  d5 {[%clk 0:01:03]} 24. Bd3 {[%clk 0:00:27]}  f5 {[%clk 0:00:57]} 25. Rd1 {[%clk 0:00:23]}  Rad8 {[%clk 0:00:49]} 26. Nf2 {[%clk 0:00:20]}  Nc3 {[%clk 0:00:48]} 27. Re1 {[%clk 0:00:19]}  e4 {[%clk 0:00:47]} 28. Bf1 {[%clk 0:00:19]}  Rfe8 {[%clk 0:00:44]} 29. Nd4 {[%clk 0:00:15]}  exf3 {[%clk 0:00:36]} 30. Nxf3 {[%clk 0:00:12]}  Rxe1+ {[%clk 0:00:33]} 31. Nxe1 {[%clk 0:00:13]}  a5 {[%clk 0:00:27]} 32. Bd3 {[%clk 0:00:10]}  Kg7 {[%clk 0:00:27]} 33. Kb2 {[%clk 0:00:09]}  Kf6 {[%clk 0:00:27]} 34. a3 {[%clk 0:00:07]}  g5 {[%clk 0:00:26]} 35. axb4 {[%clk 0:00:06]}  axb4 {[%clk 0:00:27]} 36. Kb3 {[%clk 0:00:06]}  Rb8 {[%clk 0:00:26]} 37. Nf3 {[%clk 0:00:05]}  Ba4+ {[%clk 0:00:25]} 38. Kb2 {[%clk 0:00:05]}  Ne4 {[%clk 0:00:24]} 39. Nd1 {[%clk 0:00:04]}  b3 {[%clk 0:00:22]} 40. c3 {[%clk 0:00:04]}  Nd6 {[%clk 0:00:20]} 41. Nd4 {[%clk 0:00:03]}  Nc4+ {[%clk 0:00:20]} 42. Bxc4 {[%clk 0:00:03]}  dxc4 {[%clk 0:00:21]} 43. Ne3 {[%clk 0:00:03]}  f4 {[%clk 0:00:17]} 44. Nxc4 {[%clk 0:00:03]}  Bd7 {[%clk 0:00:17]} 45. Nd6 {[%clk 0:00:03]}  Be6 {[%clk 0:00:16]} 46. Ne4+ {[%clk 0:00:02]}  Ke5 {[%clk 0:00:16]} 47. Nd2 {[%clk 0:00:00]}  Bd5 {[%clk 0:00:16]} 0-1


[Site "https://www.chess.com"]

[Event "Titled Tuesday Blitz June 13 Early 2023"]
[White "Samaganova, Aleksandra"]
[Black "Khamdamova, Afruza"]
[WhiteFideId "13800221"]
[BlackFideId "14210444"]
[WhiteElo "1858"]
[BlackElo "2312"]
[Result "0-1"]
[Round "3"]
[TimeControl "180+2"]
[Date "2023.06.13"]
[WhiteClock "0:00:00"]
[BlackClock "0:02:21"]
[Board "201"]

1. c4 {[%clk 0:03:00]}  e6 {[%clk 0:02:59]} 2. Nc3 {[%clk 0:02:59]}  d5 {[%clk 0:02:58]} 3. e3 {[%clk 0:02:57]}  Nf6 {[%clk 0:02:57]} 4. Nf3 {[%clk 0:02:56]}  Be7 {[%clk 0:02:55]} 5. d4 {[%clk 0:02:52]}  O-O {[%clk 0:02:55]} 6. cxd5 {[%clk 0:02:47]}  exd5 {[%clk 0:02:55]} 7. Bd3 {[%clk 0:02:47]}  c6 {[%clk 0:02:55]} 8. Qc2 {[%clk 0:02:44]}  Nbd7 {[%clk 0:02:53]} 9. O-O {[%clk 0:02:40]}  Re8 {[%clk 0:02:53]} 10. h3 {[%clk 0:02:34]}  Nf8 {[%clk 0:02:51]} 11. e4 {[%clk 0:02:20]}  dxe4 {[%clk 0:02:50]} 12. Nxe4 {[%clk 0:02:20]}  Nxe4 {[%clk 0:02:48]} 13. Bxe4 {[%clk 0:02:20]}  Be6 {[%clk 0:02:48]} 14. Rd1 {[%clk 0:02:12]}  Bf6 {[%clk 0:02:47]} 15. b3 {[%clk 0:01:51]}  Bd5 {[%clk 0:02:47]} 16. Bxd5 {[%clk 0:01:48]}  Qxd5 {[%clk 0:02:47]} 17. Bb2 {[%clk 0:01:48]}  Rad8 {[%clk 0:02:47]} 18. Rd2 {[%clk 0:01:39]}  Ne6 {[%clk 0:02:45]} 19. Rad1 {[%clk 0:01:37]}  Nf4 {[%clk 0:02:45]} 20. Qc3 {[%clk 0:00:22]}  Ne2+ {[%clk 0:02:37]} 21. Rxe2 {[%clk 0:00:22]}  Rxe2 {[%clk 0:02:37]} 22. Rd2 {[%clk 0:00:14]}  Rde8 {[%clk 0:02:36]} 23. Rxe2 {[%clk 0:00:13]}  Rxe2 {[%clk 0:02:36]} 24. Bc1 {[%clk 0:00:04]}  h6 {[%clk 0:02:34]} 25. Bf4 {[%clk 0:00:04]}  Rxa2 {[%clk 0:02:32]} 26. Kh2 {[%clk 0:00:03]}  Rxf2 {[%clk 0:02:32]} 27. Bg3 {[%clk 0:00:03]}  Re2 {[%clk 0:02:31]} 28. Qd3 {[%clk 0:00:03]}  Qe4 {[%clk 0:02:31]} 29. Qc3 {[%clk 0:00:03]}  Bxd4 {[%clk 0:02:22]} 30. Qd3 {[%clk 0:00:00]}  Qxd3 {[%clk 0:02:21]} 0-1


[Site "https://www.chess.com"]